fUSD/lending_fUSD_20251127
["ID","MTS","AMOUNT","RATE_DAILY","PERIOD"]
[394978357,1764249032489,-2250.17,0.00014998,2]
[394978358,1764249032499,-459.39646049,0.00014998,2]
[394978359,1764249032508,-218.0,0.00014999,2]
[394978360,1764249032518,-700.0,0.00015,2]
[394978361,1764249032528,-218.0,0.00015007,2]
[394978362,1764249032538,-203.39,0.00015027,2]
[394978363,1764249032548,-218.0,0.00015035,2]
[394978364,1764249032558,-212.17066142,0.00015069,2]
[394978365,1764249032567,-500.0,0.00015069,2]
[394978366,1764249032577,-500.0,0.00015069,2]
[394978367,1764249032586,-500.0,0.00015069,2]
[394978369,1764249032596,-200.0,0.0001507,2]
[394978371,1764249032605,-605.54202628,0.0001507,2]
[394978373,1764249032616,-62427.94283692,0.0001507,2]
[394978375,1764249032627,-1025.8851368,0.0001507,2]
[394978377,1764249032636,-168.0,0.00015083,2]
[394978378,1764249032645,-378.0,0.00015108,2]
[394978380,1764249032654,-487.0,0.00015138,2]
[394978382,1764249032663,-299.09526351,0.00015138,2]
[394978384,1764249032673,-218.0,0.00015166,2]
[394978386,1764249032682,-166.66,0.00015221,2]
[394978387,1764249032691,-150.0,0.00015288,2]
[394978389,1764249032700,-150.0,0.00015288,2]
[394978391,1764249032710,-150.0,0.00015288,2]
[394978393,1764249032719,-150.0,0.00015288,2]
[394978396,1764249032728,-150.0,0.00015288,2]
[394978399,1764249032737,-150.0,0.00015288,2]
[394978401,1764249032746,-150.0,0.00015288,2]
[394978404,1764249032755,-150.0,0.00015288,2]
[394978407,1764249032765,-150.0,0.00015288,2]
[394978410,1764249032774,-150.0,0.00015288,2]
[394978413,1764249032783,-150.0,0.00015288,2]
[394978416,1764249032792,-218.0,0.00015314,2]
[394978419,1764249032802,-1500.0,0.00015331,2]
[394978421,1764249032812,-218.0,0.00015347,2]
[394978424,1764249032821,-218.0,0.00015373,2]
[394978427,1764249032830,-218.0,0.0001538,2]
[394978430,1764249032839,-218.0,0.00015385,2]
[394978433,1764249032849,-150.0,0.00015458,2]
[394978436,1764249032858,-218.0,0.00015476,2]
[394978452,1764249033034,-150.0,0.00015476,2]
[394978454,1764249033045,-218.0,0.0001549,2]
[394978456,1764249033056,-166.66,0.00015522,2]
[394978458,1764249033070,-150.0,0.00015571,2]
[394978459,1764249033080,-305.65481374,0.000156,2]
[394978461,1764249033089,-150.0,0.00015627,2]
[394978463,1764249033098,-150.0,0.00015627,2]
[394978465,1764249033108,-218.0,0.0001565,2]
[394978467,1764249033117,-282.0,0.00015662,2]
[394978469,1764249033126,-150.0,0.00015665,2]
[394978470,1764249033135,-218.0,0.00015686,2]
[394978472,1764249033144,-150.0,0.00015712,2]
[394978474,1764249033152,-1321.0,0.00015721,2]
[394978476,1764249033161,-610.0,0.00015721,2]
[394978478,1764249033171,-1602.0,0.00015721,2]
[394978480,1764249033179,-823.0,0.00015721,2]
[394978481,1764249033189,-1257.0,0.00015721,2]
[394978483,1764249033200,-220.01237069,0.00015721,2]
[394978487,1764249033232,-439.98762931,0.00015721,2]
[394978489,1764249033241,-471.14872469,0.00015721,2]
[394978492,1764249033263,-721.85127531,0.00015721,2]
[394978494,1764249033273,-909.0,0.00015721,2]
[394978496,1764249033281,-1901.24649879,0.00015721,2]
[394978505,1764249033368,-815.75350121,0.00015721,2]
[394978507,1764249033377,-6503.0,0.00015721,2]
[394978509,1764249033387,-562.0,0.00015721,2]
[394978511,1764249033396,-218.0,0.00015791,2]
[394978512,1764249033405,-150.0,0.00015795,2]
[394978514,1764249033414,-150.0,0.00015797,2]
[394978516,1764249033423,-166.66,0.00015823,2]
[394978518,1764249033433,-150.0,0.00015854,2]
[394978520,1764249033442,-150.0,0.00015854,2]
[394978522,1764249033450,-203.39,0.00015861,2]
[394978523,1764249033459,-168.0,0.00015889,2]
[394978525,1764249033468,-218.0,0.00015898,2]
[394978527,1764249033477,-218.0,0.00015917,2]
[394978529,1764249033489,-218.0,0.00015931,2]
[394978531,1764249033498,-150.0,0.00015967,2]
[394978533,1764249033508,-150.0,0.00015967,2]
[394978535,1764249033517,-700.0,0.00016,3]
[394978536,1764249033526,-150.0,0.00016043,2]
[394978538,1764249033535,-702.04,0.00016055,2]
[394978540,1764249033543,-702.04,0.00016055,2]
[394978542,1764249033553,-168.0,0.00016062,2]
[394978544,1764249033562,-479.24,0.00016082,2]
[394978546,1764249033572,-218.0,0.00016084,2]
[394978548,1764249033582,-168.0,0.00016095,2]
[394978549,1764249033591,-255.0,0.00016122,2]
[394978551,1764249033600,-10.556809,0.00016137,2]
[394978566,1764249033746,-139.443191,0.00016137,2]
[394978568,1764249033755,-150.0,0.00016137,2]
[394978570,1764249033764,-150.0,0.00016137,2]
[394978572,1764249033774,-150.0,0.00016137,2]
[394978574,1764249033783,-250.0,0.00016208,2]
[394978575,1764249033792,-60.42199961,0.00016231,2]
[394978585,1764249033884,-89.57800039,0.00016231,2]
[394978587,1764249033897,-218.0,0.00016243,2]
[394978589,1764249033906,-200.0,0.00016264,2]
[394978590,1764249033915,-218.0,0.00016281,2]
[394978592,1764249033924,-150.0,0.00016307,2]
[394978594,1764249033935,-150.0,0.00016307,2]
[394978596,1764249033944,-1680.0,0.00016316,2]
[394978598,1764249033953,-500.0,0.00016323,2]
[394978600,1764249033962,-500.0,0.00016323,2]
[394978602,1764249033972,-500.0,0.00016323,2]
[394978603,1764249033981,-500.0,0.00016323,2]
[394978605,1764249033990,-500.0,0.00016331,2]
[394978606,1764249034000,-500.0,0.00016331,2]
[394978607,1764249034009,-294.42199969,0.00016331,2]
[394978608,1764249034020,-205.57800031,0.00016331,2]
[394978609,1764249034029,-500.0,0.00016331,2]
[394978610,1764249034038,-490.40480424,0.00016331,2]
[394978611,1764249034049,-9.59519576,0.00016331,2]
[394978612,1764249034057,-500.0,0.00016331,2]
[394978613,1764249034066,-610.74491434,0.00016331,2]
[394978614,1764249034075,-500.0,0.00016331,2]
[394978615,1764249034084,-232.83230401,0.00016331,2]
[394978616,1764249034093,-388.73685916,0.00016331,2]
[394978617,1764249034102,-500.0,0.00016342,2]
[394978618,1764249034112,-500.0,0.00016342,2]
[394978619,1764249034121,-498.38723624,0.00016342,2]
[394978620,1764249034130,-500.0,0.00016342,2]
[394978621,1764249034139,-158.56724605,0.00016353,2]
[394978622,1764249034148,-150.0,0.0001642,2]
[394978623,1764249034157,-150.0,0.0001642,2]
[394978624,1764249034172,-1006.68,0.00016438,2]
[394978625,1764249034183,-500.0,0.00016438,2]
[394978626,1764249034192,-500.0,0.00016438,2]
[394978627,1764249034201,-354.45624444,0.00016438,2]
[394978628,1764249034213,-145.54375556,0.00016438,2]
[394978629,1764249034222,-495.73767116,0.00016438,2]
[394978630,1764249034233,-4.26232884,0.00016438,2]
[394978631,1764249034242,-167.83449946,0.00016438,2]
[394978632,1764249034257,-146.00765873,0.00016438,2]
[394978633,1764249034268,-353.99234127,0.00016438,2]
[394978634,1764249034278,-168.05556862,0.00016438,2]
[394978635,1764249034288,-331.94443138,0.00016438,2]
[394978636,1764249034298,-500.0,0.00016438,2]
[394978637,1764249034307,-12400.42,0.00016438,2]
[394978638,1764249034316,-800.0,0.00016438,2]
[394978639,1764249034326,-150.0,0.00016477,2]
[394978640,1764249034336,-4680.51416558,0.00016542,2]
[394978641,1764249034345,-1257.1625176,0.00016548,2]
[394978642,1764249034354,-6241.2590807,0.00016548,2]
[394978643,1764249034363,-2227.31165,0.00016548,2]
[394978644,1764249034372,-293.5275763,0.00016548,2]
[394978645,1764249034380,-150.0,0.00016562,2]
[394978646,1764249034389,-150.0,0.00016609,2]
[394978647,1764249034398,-150.0,0.00016647,2]
[394978648,1764249034407,-150.0,0.00016647,2]
[394978650,1764249034415,-1000.0,0.00016666,2]
[394978651,1764249034425,-1732.55050065,0.00016672,2]
[394978652,1764249034434,-9214.09298536,0.00016686,2]
[394978654,1764249034449,-293.49255759,0.00016686,2]
[394978753,1764249035365,500.12668963,0.00014635,2]
[394978757,1764249035394,10000.01,0.00014635,2]
[394978760,1764249035420,10000.01,0.00014635,2]
[394978764,1764249035447,10000.01,0.00014635,2]
[394978768,1764249035473,10000.01,0.00014635,2]
[394978772,1764249035500,10000.01,0.00014635,2]
[394978776,1764249035526,10000.01,0.00014635,2]
[394978780,1764249035551,10000.01,0.00014635,2]
[394978784,1764249035577,10000.01,0.00014635,2]
[394978787,1764249035605,10000.01,0.00014635,2]
[394978791,1764249035631,632870.58583471,0.00014635,2]
[394978796,1764249035663,36629.19747566,0.00014635,2]
[394979039,1764249038249,-1000.0,0.00016672,2]
[394979040,1764249038259,-4620.42425161,0.00016686,2]
[394979041,1764249038270,-3502.99053094,0.00016686,2]
[394979042,1764249038280,-3379.6971302,0.00016686,2]
[394979043,1764249038289,-270.96815069,0.00016688,2]
[394979044,1764249038298,-1000.0,0.00016696,2]
[394979045,1764249038308,-203.39,0.00016696,2]
[394979046,1764249038317,-150.0,0.00016703,2]
[394979047,1764249038326,-1006.68,0.00016712,2]
[394979048,1764249038336,-369.54388482,0.00016712,2]
[394979049,1764249038346,-222.61,0.00016712,2]
[394979050,1764249038355,-150.0,0.00016779,2]
[394979051,1764249038364,-152.75787537,0.00016779,2]
[394979052,1764249038373,-150.0,0.00016779,2]
[394979053,1764249038383,-150.0,0.00016779,2]
[394979054,1764249038392,-299.4528281,0.00016779,2]
[394979055,1764249038401,-150.0,0.00016779,2]
[394979056,1764249038411,-150.0,0.00016779,2]
[394979057,1764249038420,-500.0,0.00016779,2]
[394979058,1764249038429,-150.0,0.00016779,2]
[394979059,1764249038438,-448.0,0.00016779,2]
[394979060,1764249038447,-150.0,0.00016779,2]
[394979061,1764249038456,-150.0,0.00016779,2]
[394979062,1764249038602,-150.0,0.00016779,2]
[394979063,1764249038611,-167.77619749,0.0001678,2]
[394979064,1764249038621,-150.0,0.00016798,2]
[394979065,1764249038630,-4488.0,0.00016816,2]
[394979066,1764249038640,-150.0,0.00016816,2]
[394979067,1764249038650,-1000.0,0.00016871,2]
[394979068,1764249038659,-1000.0,0.00016871,2]
[394979069,1764249038668,-1000.0,0.00016871,2]
[394979070,1764249038678,-1000.0,0.00016871,2]
[394979071,1764249038687,-622.52786237,0.00016879,2]
[394979072,1764249038696,-805.6883248,0.00016879,2]
[394979073,1764249038705,-1000.0,0.00016879,2]
[394979074,1764249038715,-294.3607141,0.00016879,2]
[394979075,1764249038724,-1001.39369144,0.00016879,2]
[394979076,1764249038733,-171.28775345,0.00016879,2]
[394979077,1764249038743,-194.19485575,0.00016879,2]
[394979078,1764249038752,-500.0,0.00016879,2]
[394979079,1764249038761,-411.45168855,0.00016879,2]
[394979080,1764249038770,-54157.15439736,0.0001688,2]
[394979081,1764249038779,-151.0,0.0001688,2]
[394979082,1764249038789,-201.07851298,0.0001688,2]
[394979083,1764249038798,-1000.0,0.0001689,2]
[394979084,1764249038807,-1000.0,0.0001689,2]
[394979085,1764249038816,-1256.11843972,0.000169,2]
[394979086,1764249038825,-369.54388478,0.0001691,2]
[394979087,1764249038834,-150.0,0.00016916,2]
[394979088,1764249038843,-500.0,0.00016916,2]
[394979089,1764249038852,-448.0,0.00016916,2]
[394979090,1764249038862,-150.0,0.00016916,2]
[394979091,1764249038872,-150.0,0.00016916,2]
[394979092,1764249038881,-151.0,0.00016922,2]
[394979093,1764249038891,-500.0,0.00016973,2]
[394979094,1764249038904,-500.0,0.00016973,2]
[394979095,1764249038914,-500.0,0.00016973,2]
[394979096,1764249038924,-500.0,0.00016973,2]
[394979097,1764249038935,-161.0067067,0.00016973,2]
[394979098,1764249038945,-500.0,0.00016973,2]
[394979099,1764249038956,-1006.68,0.00016986,2]
[394979100,1764249038965,-150.0,0.00016986,2]
[394979101,1764249038977,-227.89828506,0.00016986,2]
[394979102,1764249038986,-247.8255487,0.00016986,2]
[394979103,1764249038996,-227.44220096,0.00016986,2]
[394979104,1764249039006,-229.16977395,0.00016986,2]
[394979105,1764249039015,-158.27867006,0.00016986,2]
[394979106,1764249039025,-292.50808609,0.00016986,2]
[394979107,1764249039035,-150.0,0.00016986,2]
[394979108,1764249039044,-800.0,0.00016986,2]
[394979109,1764249039054,-380.17831963,0.0001699,2]
[394979110,1764249039064,-300.0,0.00016999,2]
[394979111,1764249039074,-670469.94221609,0.00017,2]
[394979112,1764249039084,-107608.23175997,0.00017,2]
[394979113,1764249039093,-105408.19394775,0.00017,2]
[394979114,1764249039102,-160.0,0.00017,2]
[394979115,1764249039111,-213576.28030768,0.00017,2]
[394979116,1764249039120,-6825.34760981,0.00017,2]
[394979117,1764249039132,-1448.71336243,0.00017,2]
[394979118,1764249039146,-30074.33497504,0.00017,2]
[394979119,1764249039161,-2016.7783417,0.00017,2]
[394979120,1764249039172,-2739.27613519,0.00017,2]
[394979135,1764249040424,-878.02925405,0.00017,2]
[394979156,1764249040643,-150.0,0.00016779,2]
[394979157,1764249040652,-8083.94053077,0.00017,2]
[394979158,1764249040661,-2000.0,0.00017,2]
[394979159,1764249040672,-250.0,0.00017,2]
[394979160,1764249040681,-742.0,0.00017,4]
[394979161,1764249040691,-151.0,0.00017,2]
[394979162,1764249040700,-151.0,0.00017,2]
[394979163,1764249040710,-151.0,0.00017,2]
[394979164,1764249040719,-151.0,0.00017,2]
[394979165,1764249040729,-151.0,0.00017,2]
[394979166,1764249040739,-151.0,0.00017,2]
[394979167,1764249040748,-166.66,0.0001703,2]
[394979168,1764249040757,-150.0,0.00017053,2]
[394979169,1764249040766,-500.0,0.00017053,2]
[394979170,1764249040775,-448.0,0.00017053,2]
[394979171,1764249040789,-200.0,0.00017053,2]
[394979172,1764249040798,-250.0,0.00017053,2]
[394979173,1764249040808,-300.0,0.0001708,2]
[394979174,1764249040818,-369.54388478,0.00017108,2]
[394979175,1764249040828,-1097.0,0.00017169,2]
[394979176,1764249040838,-150.0,0.0001719,2]
[394979177,1764249040847,-500.0,0.0001719,2]
[394979178,1764249040857,-448.0,0.0001719,2]
[394979180,1764249040866,-150.0,0.000172,7]
[394979181,1764249040875,-1006.68,0.0001726,2]
[394979183,1764249040885,-369.54388478,0.00017306,2]
[394979184,1764249040896,-500.0,0.00017327,2]
[394979186,1764249040907,-448.0,0.00017327,2]
[394979188,1764249040916,-433.0,0.00017336,2]
[394979189,1764249040925,-1500.0,0.00017418,2]
[394979191,1764249040935,-1500.0,0.00017418,2]
[394979193,1764249040944,-1500.0,0.00017418,2]
[394979194,1764249040953,-1500.0,0.00017427,2]
[394979195,1764249040962,-154.81537229,0.00017438,2]
[394979196,1764249040972,-482.22141068,0.00017438,2]
[394979197,1764249040982,-392.59624336,0.00017462,2]
[394979198,1764249040991,-500.0,0.00017464,2]
[394979200,1764249041001,-448.0,0.00017464,2]
[394979201,1764249041011,-240.95,0.00017476,2]
[394979202,1764249041020,-187.14,0.00017494,2]
[394979203,1764249041030,-369.54388478,0.00017504,2]
[394979204,1764249041039,-502.60400669,0.00017521,2]
[394979205,1764249041049,-410.80515512,0.00017521,2]
[394979206,1764249041058,-1002.07472524,0.00017521,2]
[394979207,1764249041067,-1000.0,0.00017521,2]
[394979208,1764249041077,-174.91,0.00017525,2]
[394979209,1764249041087,-203.39,0.00017531,2]
[394979210,1764249041096,-772.76724151,0.00017534,2]
[394979211,1764249041108,-233.91275849,0.00017534,2]
[394979212,1764249041118,-800.0,0.00017534,2]
[394979213,1764249041127,-500.0,0.00017601,2]
[394979214,1764249041136,-448.0,0.00017601,2]
[394979215,1764249041146,-566.86,0.00017628,2]
[394979216,1764249041159,-346.54,0.00017628,2]
[394979217,1764249041168,-300.0,0.0001764,2]
[394979218,1764249041177,-166.67,0.00017691,2]
[394979219,1764249041187,-300.0,0.00017693,2]
[394979220,1764249041196,-236.13864113,0.00017702,2]
[394979222,1764249044222,-133.40524365,0.00017702,2]
[394979223,1764249044232,-4636.8,0.00017728,2]
[394979224,1764249044242,-150.99,0.00017728,2]
[394979225,1764249044252,-14145.56,0.00017728,2]
[394979226,1764249044262,-3762.53,0.00017728,2]
[394979227,1764249044271,-299.99,0.00017728,4]
[394979228,1764249044280,-1307.3,0.00017728,2]
[394979229,1764249044292,-4614.03,0.00017728,2]
[394979230,1764249044302,-151.0,0.00017728,2]
[394979231,1764249044311,-241.89032763,0.00017732,2]
[394979232,1764249044321,-500.0,0.00017738,2]
[394979233,1764249044331,-448.0,0.00017738,2]
[394979234,1764249044341,-152.0,0.00017788,3]
[394979235,1764249044350,-1006.68,0.00017808,2]
[394979236,1764249044359,-300.0,0.00017821,2]
[394979237,1764249044369,-174.12,0.00017833,2]
[394979238,1764249044378,-300.0,0.00017849,2]
[394979239,1764249044387,-309.47134,0.00017875,2]
[394979240,1764249044396,-448.0,0.00017875,2]
[394979241,1764249044406,-160.0,0.000179,3]
[394979242,1764249044414,-160.0,0.000179,3]
[394979243,1764249044424,-305.21986877,0.000179,3]
[394979244,1764249044432,-10000.0,0.000179,2]
[394979245,1764249044442,-167.77619749,0.000179,2]
[394979246,1764249044451,-369.54388478,0.000179,2]
[394979247,1764249044460,-1252.87534584,0.000179,2]
[394979248,1764249044469,-566.86,0.00017902,2]
[394979249,1764249044478,-346.54,0.00017902,2]
[394979250,1764249044488,-300.0,0.00017907,2]
[394979251,1764249044500,-300.0,0.0001792,2]
[394979252,1764249044509,-300.0,0.00017922,2]
[394979253,1764249044520,-300.0,0.00017926,2]
[394979254,1764249044529,-427.24637793,0.00017934,2]
[394979255,1764249044539,-300.0,0.00017945,2]
[394979256,1764249044548,-2351.0,0.00017948,2]
[394979257,1764249044557,-2000.0,0.00017966,2]
[394979258,1764249044567,-1057.22259373,0.00017966,2]
[394979259,1764249044576,-2000.0,0.00017966,2]
[394979260,1764249044585,-500.0,0.00017973,2]
[394979261,1764249044594,-501.67294574,0.00017973,2]
[394979262,1764249044603,-504.9809457,0.00017973,2]
[394979263,1764249044612,-500.0,0.00017973,2]
[394979264,1764249044622,-500.0,0.00017973,2]
[394979265,1764249044632,-500.0,0.00017973,2]
[394979266,1764249044643,-500.0,0.00017973,2]
[394979267,1764249044653,-500.0,0.00017973,2]
[394979268,1764249044662,-500.0,0.00017973,2]
[394979269,1764249044672,-500.0,0.00017973,2]
[394979270,1764249044681,-500.98676918,0.00017973,2]
[394979271,1764249044693,-164.07447833,0.00017973,2]
[394979272,1764249044702,-415.30385931,0.00017973,2]
[394979273,1764249044711,-501.70301498,0.00017973,2]
[394979274,1764249044722,-500.0,0.00017973,2]
[394979275,1764249044731,-500.0,0.00017973,2]
[394979276,1764249044740,-500.0,0.00017973,2]
[394979277,1764249044750,-501.27256296,0.00017973,2]
[394979278,1764249044759,-500.0,0.00017973,2]
[394979279,1764249044769,-557.15641422,0.00017973,2]
[394979280,1764249044779,-500.0,0.00017973,2]
[394979281,1764249044788,-500.0,0.00017973,2]
[394979282,1764249044798,-500.0,0.00017973,2]
[394979283,1764249044807,-500.0,0.00017973,2]
[394979284,1764249044816,-281.5985053,0.00017973,2]
[394979285,1764249044826,-501.18613092,0.00017973,2]
[394979286,1764249044835,-500.0,0.00017973,2]
[394979287,1764249044844,-500.0,0.00017973,2]
[394979288,1764249044854,-505.65586842,0.00017973,2]
[394979289,1764249044863,-2000.0,0.00017975,2]
[394979290,1764249044873,-300.0,0.00017989,2]
[394979291,1764249044882,-380.17831963,0.0001799,2]
[394979292,1764249044893,-380.17831963,0.0001799,2]
[394979293,1764249044905,-11500.54680158,0.00017999,2]
[394979294,1764249044915,-300.0,0.00017999,2]
[394979295,1764249044925,-6312.83402181,0.00018,2]
[394979296,1764249044935,-181398.89774246,0.00018,2]
[394979297,1764249044953,-701.688,0.00018,2]
[394979305,1764249046387,-250.0,0.0001696,2]
[394979307,1764249046396,-7.2159997,0.0001799,3]
[394979309,1764249046407,-371.9740003,0.0001799,3]
[394979310,1764249046416,-7.14599971,0.00018,2]
[394979311,1764249046427,-374.749375,0.00018,2]
[394979314,1764249048047,-1277.51162355,0.00018,2]
[394979315,1764249048059,-639.04745978,0.00018,2]
[394979316,1764249048070,-824.59,0.00018,2]
[394979317,1764249051298,1000.0,0.00014635,2]
[394979318,1764249063651,10000.01,0.00014635,2]
[394979319,1764249086539,500.0,0.00014734,2]
[394979320,1764249086770,291.27618921,0.00014734,2]
[394979356,1764249133634,-471.43891664,0.00015137,2]
[394979357,1764249133656,-909.0,0.00015991,2]
[394979359,1764249133679,-1193.0,0.00015991,2]
[394979360,1764249133701,-158.56724605,0.0001632,2]
[394979361,1764249133725,-500.0,0.00016331,2]
[394979362,1764249133747,-500.0,0.00016331,2]
[394979363,1764249133768,-150.0,0.000164,2]
[394979364,1764249133790,-195.0,0.00016404,2]
[394979365,1764249133811,-300.0,0.00016404,2]
[394979366,1764249133833,-300.0,0.00016437,2]
[394979367,1764249133855,-500.0,0.00016438,2]
[394979368,1764249133877,-500.0,0.00016438,2]
[394979369,1764249133899,-500.0,0.00016438,2]
[394979370,1764249133921,-500.0,0.00016438,2]
[394979371,1764249133946,-500.0,0.00016438,2]
[394979372,1764249133968,-500.0,0.00016438,2]
[394979373,1764249133990,-366.78344995,0.00016438,2]
[394979374,1764249134014,-500.0,0.00016438,2]
[394979375,1764249134037,-195.0,0.00016651,2]
[394979376,1764249134059,-195.0,0.00016671,2]
[394979377,1764249134081,-362.52238698,0.00016866,2]
[394979378,1764249134103,-1000.0,0.00016879,2]
[394979379,1764249134125,-362.52238698,0.00016883,2]
[394979380,1764249134147,-300.0,0.00016898,2]
[394979381,1764249134182,-300.0,0.00016898,2]
[394979382,1764249134204,-300.0,0.00016898,2]
[394979383,1764249134228,-444.32173984,0.00016898,2]
[394979385,1764249134250,-362.52238698,0.000169,2]
[394979386,1764249134272,-151.0,0.00017,2]
[394979387,1764249134295,-1500.0,0.00017427,2]
[394979389,1764249134317,-300.0,0.0001759,2]
[394979390,1764249134342,-195.0,0.0001759,2]
[394979391,1764249134365,-300.0,0.0001759,2]
[394979392,1764249134388,-550.0,0.00017639,2]
[394979393,1764249134410,-2340.25708279,0.0001764,2]
[394979394,1764249134434,-1031.765,0.0001764,2]
[394979395,1764249134456,-184.008,0.0001764,2]
[394979400,1764249135718,158.56724605,0.0001632,2]
[394979412,1764249164863,500.0,0.00014635,2]
[394979417,1764249366308,-300.0,0.00014968,2]
[394979418,1764249366332,-1200.0,0.00014968,2]
[394979419,1764249366355,-300.0,0.00014968,2]
[394979420,1764249366379,-150.0,0.00014968,2]
[394979423,1764249469707,300.0,0.00014968,2]
[394979444,1764249765012,243.5,0.00013021,2]
[394979445,1764249765223,243.5,0.00014323,2]
[394979449,1764249789908,9271.12,8.038e-05,2]
[394979450,1764249790092,728.89,8.461e-05,2]
[394979451,1764249790116,8542.23,8.461e-05,2]
[394979452,1764249790291,1457.78,8.884e-05,2]
[394979453,1764249790315,7813.34,8.884e-05,2]
[394979454,1764249790495,2186.67,9.307e-05,2]
[394979455,1764249790518,7084.45,9.307e-05,2]
[394979456,1764249790703,2915.56,9.73e-05,2]
[394979457,1764249790726,6355.56,9.73e-05,2]
[394979458,1764249790907,3644.45,0.00010154,2]
[394979459,1764249790931,5626.67,0.00010154,2]
[394979460,1764249791109,4373.34,0.00010577,2]
[394979461,1764249791137,4897.78,0.00010577,2]
[394979462,1764249791320,9271.12,0.00011,2]
[394979463,1764249791548,9271.12,0.00011423,2]
[394979465,1764249791930,9271.12,0.00011846,2]
[394979466,1764249792006,9271.12,0.00012269,2]
[394979467,1764249792174,9271.12,0.00012692,2]
[394979468,1764249792387,9271.12,0.00013115,2]
[394979469,1764249792576,9271.12,0.00013538,2]
[394979470,1764249792781,9271.12,0.00013961,2]
[394979471,1764249792989,9271.12,0.00014384,2]
[394979478,1764249847141,163.39,0.00019178,30]
[394979486,1764249919085,3002.62318644,9e-05,2]
[394979487,1764249924697,1021.82221131,0.000108,2]
[394979489,1764249960322,8978.18778869,8e-05,2]
[394979490,1764249960347,1024.4904141,8e-05,2]
[394979491,1764249964297,8975.5195859,0.00011,2]
[394979492,1764249964332,393.24773258,0.00011,2]
[394979496,1764250031595,205.0,9.8e-05,2]
[394979497,1764250034891,5312.96327068,0.0001305,2]
[394979498,1764250035311,258.37594063,0.000101,2]
[394979499,1764250065864,3830.42305611,0.00013,2]
[394979500,1764250065889,569.55902654,0.00013,2]
[394979505,1764250086444,9430.45097346,0.0001439,2]
[394979506,1764250086467,817.60916507,0.0001439,2]
[394979507,1764250089519,1000.0,0.000135,2]
[394979508,1764250089583,305.58802094,0.000125,2]
[394979509,1764250097287,1320.95523533,0.0001,2]
[394979510,1764250099168,389.32128991,7.888e-05,2]
[394979512,1764250109040,2719.23670956,0.0001,2]
[394979514,1764250119472,3447.29957919,0.0001,2]
[394979515,1764250119495,10000.01,0.0001,2]
[394979516,1764250119522,3839.74900535,0.0001,2]
[394979517,1764250137224,5523.0,0.000144,5]
[394979520,1764250227238,170.0,6.8e-07,2]
[394979533,1764250231456,-900.0,0.00014806,2]
[394979535,1764250231466,-1200.0,0.00014806,2]
[394979536,1764250231476,-300.0,0.00014806,2]
[394979537,1764250231485,-15.50793692,0.00014806,2]
[394979538,1764250231496,-194.49206308,0.00014806,2]
[394979539,1764250231506,-250.0,0.00014806,2]
[394979540,1764250231515,-195.0,0.00014807,2]
[394979541,1764250231524,-144.85944659,0.00014807,2]
[394979543,1764250231535,-999.0,0.00014807,2]
[394979544,1764250231547,-8127.26055341,0.00014807,2]
[394979546,1764250231556,-626.11966787,0.00014869,2]
[394979547,1764250231565,-2943.87071189,0.0001487,2]
[394979549,1764250231576,-2584.32076372,0.0001487,2]